{"text_format":"3","workbook":"xlsx","n_sheets":4,"sheets":["התחלה","הוצאות","הכנסות","סיכום"],"not_rendered":{"charts":1,"defined_names":2},"read":"whole","date_system":"1900"}

{"sheet":"התחלה","index":0,"n_rows":8,"n_cols":2,"rows_kept":8}
[null,"אודות תבנית זו"]
[null,"השתמש בחוברת עבודה זו של תקציב אירוע כדי לעקוב אחר ההוצאות וההכנסות עבור אירוע."]
[null,"מלא את שם האירוע והזן פרטים בטבלאות שבגליון העבודה 'הוצאות' ובגליון העבודה 'הכנסות'."]
[null,"סה\"כ ההוצאות וסה\"כ ההכנסות מחושבות באופן אוטומטי."]
[null,"סיכום הרווח וההפסד והתרשים מתעדכנים באופן אוטומטי בגליון העבודה 'סיכום'."]
[null,"הערה: "]
[null,"הוראות נוספות סופקו בעמודה A בכל גליון עבודה. טקסט זה הוסתר במכוון. כדי להסיר את הטקסט, בחר את עמודה A ולאחר מכן בחר DELETE. כדי לבטל את הסתרת הטקסט, בחר את עמודה A ולאחר מכן שנה את צבע הגופן."]
[null,"לקבלת מידע נוסף על הטבלאות, הקש SHIFT ולאחר מכן F10 בתוך טבלה, בחר את האפשרות 'טבלה' ולאחר מכן בחר 'טקסט חלופי'."]

{"sheet":"הוצאות","index":1,"n_rows":33,"n_cols":8,"rows_kept":33,"merged":[[0,5,0,7],[1,1,1,7],[2,6,2,7]]}
["הזן את ההוצאות המשוערות ואת ההוצאות בפועל עבור כל קטגוריה בטבלאות המתאימות בגליון עבודה זה. סה\"כ ההוצאות מחושב באופן אוטומטי. הוראות שימוש בגליון עבודה זה מופיעות בתאים שבעמודה זו. הקש על החץ למטה כדי להתחיל."]
["הזן את שם האירוע בתא משמאל כדי להתאים אישית את הכותרת של גליון עבודה זה וגליונות העבודה האחרים.","תקציב אירוע עבור \nשם האירוע"]
["התווית 'הוצאות' מופיעה בתא G3.",{"$nulls":5}," הוצאות"]
["התווית 'משוערת' מופיעה בתא G4, והתווית 'בפועל' מופיעה בתא H4.",{"$nulls":5},"משוערת","בפועל"]
["התווית 'סה\"כ הוצאות' מופיעה בתא משמאל. סה\"כ ההוצאות המשוערות מחושב באופן אוטומטי בתא G5. סה\"כ ההוצאות בפועל וסרגל נתונים שמציג את סה\"כ ההוצאות בפועל מתעדכנים באופן אוטומטי בתא H5. ההוראה הבאה מופיעה בתא A7.","סה\"כ ההוצאות",{"$nulls":4},{"$f":"SUM(C12,C20,C26,C33,G12,G20,G25)","v":{"v":1145,"d":"₪ 1,145.00"}},{"$f":"SUM(D12,D20,D26,D33,H12,H20,H25)","v":{"v":395,"d":"₪ 395.00"}}]
[]
["הזן את ההוצאות על האתר בטבלה שמתחילה בתא משמאל ואת ההוצאות על הכיבוד בטבלה שמתחילה בתא F7. ההוראה הבאה מופיעה בתא A14.","אתר","משוערת","בפועל",null,"כיבוד","משוערת","בפועל"]
[null,"שכירת חדר ואולם",{"v":500,"d":"₪ 500.00"},{"v":250,"d":"₪ 250.00"},null,"מזון"]
[null,"צוות באתר",{"v":400,"d":"₪ 400.00"},{"v":50,"d":"₪ 50.00"},null,"משקאות"]
[null,"ציוד",{"$nulls":3},"מפות"]
[null,"שולחנות וכיסאות",{"$nulls":3},"צוות ודמי שירות"]
[null,"סה\"כ",{"$f":"SUBTOTAL(109,ההוצאות_על_האתר[משוערת])","v":{"v":900,"d":"₪ 900.00"}},{"$f":"SUBTOTAL(109,ההוצאות_על_האתר[בפועל])","v":{"v":300,"d":"₪ 300.00"}},null,"סה\"כ",{"$f":"SUBTOTAL(109,ההוצאות_על_הכיבוד[משוערת])","v":{"v":0,"d":"₪ 0.00"}},{"$f":"SUBTOTAL(109,ההוצאות_על_הכיבוד[בפועל])","v":{"v":0,"d":"₪ 0.00"}}]
[]
["הזן את ההוצאות על הקישוטים בטבלה שמתחילה בתא משמאל ואת ההוצאות על התוכנית בטבלה שמתחילה בתא F14. ההוראה הבאה מופיעה בתא A22.","קישוטים","משוערת","בפועל",null,"תוכנית","משוערת","בפועל"]
[null,"פרחים",{"v":200,"d":"₪ 200.00"},{"v":50,"d":"₪ 50.00"},null,"הופעה"]
[null,"נרות",{"$nulls":3},"מרצים"]
[null,"תאורה",{"$nulls":3},"נסיעות"]
[null,"בלונים",{"$nulls":3},"מלון"]
[null,"קישוטי נייר",{"$nulls":3},"אחר"]
[null,"סה\"כ",{"$f":"SUBTOTAL(109,הוצאות_על_קישוטים[משוערת])","v":{"v":200,"d":"₪ 200.00"}},{"$f":"SUBTOTAL(109,הוצאות_על_קישוטים[בפועל])","v":{"v":50,"d":"₪ 50.00"}},null,"סה\"כ",{"$f":"SUBTOTAL(109,הוצאות_על_התוכנית[משוערת])","v":{"v":0,"d":"₪ 0.00"}},{"$f":"SUBTOTAL(109,הוצאות_על_התוכנית[בפועל])","v":{"v":0,"d":"₪ 0.00"}}]
[]
["הזן את ההוצאות על הפרסום בטבלה שמתחילה בתא משמאל ואת ההוצאות על הפרסים בטבלה שמתחילה בתא F22. ההוראה הבאה מופיעה בתא A28.","פרסום","משוערת","בפועל",null,"פרסים","משוערת","בפועל"]
[null,"גרפיקה",{"v":45,"d":"₪ 45.00"},{"v":45,"d":"₪ 45.00"},null,"גביעים/מדליות"]
[null,"צילום/הדפסה",{"$nulls":3},"מתנות"]
[null,"דמי דואר",{"$nulls":3},"סה\"כ",{"$f":"SUBTOTAL(109,ההוצאות_על_הפרסים[משוערת])","v":{"v":0,"d":"₪ 0.00"}},{"$f":"SUBTOTAL(109,ההוצאות_על_הפרסים[בפועל])","v":{"v":0,"d":"₪ 0.00"}}]
[null,"סה\"כ",{"$f":"SUBTOTAL(109,ההוצאות_על_הפרסום[משוערת])","v":{"v":45,"d":"₪ 45.00"}},{"$f":"SUBTOTAL(109,ההוצאות_על_הפרסום[בפועל])","v":{"v":45,"d":"₪ 45.00"}}]
[]
["הזן את ההוצאות על שונות בטבלה שמתחילה בתא משמאל.","שונות","משוערת","בפועל"]
[null,"טלפון"]
[null,"תחבורה"]
[null,"מוצרי נייר"]
[null,"שירותי פקס"]
[null,"סה\"כ",{"$f":"SUBTOTAL(109,ההוצאות_על_שונות[משוערת])","v":{"v":0,"d":"₪ 0.00"}},{"$f":"SUBTOTAL(109,ההוצאות_על_שונות[בפועל])","v":{"v":0,"d":"₪ 0.00"}}]

{"sheet":"הכנסות","index":2,"n_rows":30,"n_cols":7,"rows_kept":30,"merged":[[1,1,1,6],[2,5,2,6]]}
["הזן את ההכנסות המשוערות ואת ההכנסות בפועל עבור כל קטגוריה בטבלאות המתאימות בגליון עבודה זה. סה\"כ ההכנסות מחושב באופן אוטומטי. הוראות שימוש בגליון עבודה זה מופיעות בתאים שבעמודה זו. הקש על החץ למטה כדי להתחיל."]
["שם האירוע מתעדכן באופן אוטומטי בתא משמאל.",{"$f":"הוצאות!B2","v":"תקציב אירוע עבור \nשם האירוע"}]
["התווית 'הכנסות' מופיעה בתא F3.",{"$nulls":4}," הכנסות"]
["התווית 'משוערת' מופיעה בתא F4, והתווית 'בפועל' מופיעה בתא G4.",{"$nulls":4},"משוערת","בפועל"]
["התווית 'סה\"כ הכנסות' מופיעה בתא משמאל. סה\"כ ההכנסות המשוערות מחושב באופן אוטומטי בתא F5. סה\"כ ההכנסות בפועל וסרגל נתונים שמציג את סה\"כ ההכנסות בפועל מתעדכנים באופן אוטומטי בתא G5.","סה\"כ הכנסות",{"$nulls":3},{"$f":"SUM(כרטיסי_כניסה[[#Totals],[סה\"כ משוערות]],פרסומות_בתוכנייה[[#Totals],[סה\"כ משוערות]],מציגים_ומוכרים[[#Totals],[סה\"כ משוערות]],מכירת_פריטים[[#Totals],[סה\"כ משוערות]])","v":{"v":1936,"d":"₪ 1,936.00"}},{"$f":"SUM(כרטיסי_כניסה[[#Totals],[סה\"כ בפועל]],פרסומות_בתוכנייה[[#Totals],[סה\"כ בפועל]],מציגים_ומוכרים[[#Totals],[סה\"כ בפועל]],מכירת_פריטים[[#Totals],[סה\"כ בפועל]])","v":{"v":1831,"d":"₪ 1,831.00"}}]
["התווית 'כרטיסי כניסה' מופיעה בתא משמאל.","כרטיסי כניסה"]
["הזן את המספר משוערת והמספר בפועל של כרטיסי הכניסה עם תעריפי הכרטיסים בטבלה שמתחילה בתא משמאל. ההכנסה המשוערת וההכנסה בפועל מכרטיסי הכניסה מחושבות באופן אוטומטי. ההוראה הבאה מופיעה בתא A12.","משוערת","בפועל","סוג","מחיר","סה\"כ משוערות","סה\"כ בפועל"]
[null,300,278,"מבוגרים",{"v":5,"d":"₪ 5.00"},{"$f":"B8*E8","v":{"v":1500,"d":"₪ 1,500.00"}},{"$f":"C8*E8","v":{"v":1390,"d":"₪ 1,390.00"}}]
[null,197,195,"ילדים",{"v":2,"d":"₪ 2.00"},{"$f":"B9*E9","v":{"v":394,"d":"₪ 394.00"}},{"$f":"C9*E9","v":{"v":390,"d":"₪ 390.00"}}]
[null,42,51,"אחר",{"v":1,"d":"₪ 1.00"},{"v":42,"d":"₪ 42.00"},{"v":51,"d":"₪ 51.00"}]
[null," ",{"$nulls":3},{"$f":"SUBTOTAL(109,כרטיסי_כניסה[סה\"כ משוערות])","v":{"v":1936,"d":"₪ 1,936.00"}},{"$f":"SUBTOTAL(109,כרטיסי_כניסה[סה\"כ בפועל])","v":{"v":1831,"d":"₪ 1,831.00"}}]
["התווית 'פרסומות בתוכנייה' מופיעה בתא משמאל.","פרסומות בתוכנייה"]
["הזן את המספר המשוער והמספר בפועל של הפרסומות בתוכנייה ואת תעריפי הפרסום בטבלה שמתחילה בתא משמאל. ההכנסה המשוערת וההכנסה בפועל מהפרסומות מחושבות באופן אוטומטי. ההוראה הבאה מופיעה בתא A18.","משוערת","בפועל","סוג","מחיר","סה\"כ משוערות","סה\"כ בפועל"]
[{"$nulls":3},"כריכות",null,{"$f":"B14*E14","v":{"v":0,"d":"₪ 0.00"}},{"$f":"C14*E14","v":{"v":0,"d":"₪ 0.00"}}]
[{"$nulls":3},"חצי עמוד",null,{"$f":"B15*E15","v":{"v":0,"d":"₪ 0.00"}},{"$f":"C15*E15","v":{"v":0,"d":"₪ 0.00"}}]
[{"$nulls":3},"רבע עמוד",null,{"v":0,"d":"₪ 0.00"},{"v":0,"d":"₪ 0.00"}]
[null," ",{"$nulls":3},{"$f":"SUBTOTAL(109,פרסומות_בתוכנייה[סה\"כ משוערות])","v":{"v":0,"d":"₪ 0.00"}},{"$f":"SUBTOTAL(109,פרסומות_בתוכנייה[סה\"כ בפועל])","v":{"v":0,"d":"₪ 0.00"}}]
["התווית 'מציגים או מוכרים' מופיעה בתא משמאל.","מציגים/מוכרים"]
["הזן את המספר המשוער והמספר בפועל של המציגים והמוכרים ואת תעריפי הדוכנים בטבלה שמתחילה בתא משמאל. ההכנסה המשוערת וההכנסה בפועל מחושבות באופן אוטומטי. ההוראה הבאה מופיעה בתא A24.","משוערת","בפועל","סוג","מחיר","סה\"כ משוערות","סה\"כ בפועל"]
[{"$nulls":3},"דוכנים גדולים",null,{"$f":"B20*E20","v":{"v":0,"d":"₪ 0.00"}},{"$f":"C20*E20","v":{"v":0,"d":"₪ 0.00"}}]
[{"$nulls":3},"דוכנים בינוניים",null,{"$f":"B21*E21","v":{"v":0,"d":"₪ 0.00"}},{"$f":"C21*E21","v":{"v":0,"d":"₪ 0.00"}}]
[{"$nulls":3},"דוכנים קטנים",null,{"v":0,"d":"₪ 0.00"},{"v":0,"d":"₪ 0.00"}]
[null," ",{"$nulls":3},{"$f":"SUBTOTAL(109,מציגים_ומוכרים[סה\"כ משוערות])","v":{"v":0,"d":"₪ 0.00"}},{"$f":"SUBTOTAL(109,מציגים_ומוכרים[סה\"כ בפועל])","v":{"v":0,"d":"₪ 0.00"}}]
["התווית 'מכירת פריטים' מופיעה בתא משמאל.","מכירת פריטים"]
["הזן את המספר המשוער והמספר בפועל של הפריטים שנמכרו ואת תעריפי הפריטים בטבלה שמתחילה בתא משמאל. ההכנסה המשוערת וההכנסה בפועל מחושבות באופן אוטומטי.","משוערת","בפועל","סוג","מחיר","סה\"כ משוערות","סה\"כ בפועל"]
[{"$nulls":3},"פריטים",null,{"$f":"B26*E26","v":{"v":0,"d":"₪ 0.00"}},{"$f":"C26*E26","v":{"v":0,"d":"₪ 0.00"}}]
[{"$nulls":3},"פריטים",null,{"$f":"B27*E27","v":{"v":0,"d":"₪ 0.00"}},{"$f":"C27*E27","v":{"v":0,"d":"₪ 0.00"}}]
[{"$nulls":3},"פריטים",null,{"v":0,"d":"₪ 0.00"},{"v":0,"d":"₪ 0.00"}]
[{"$nulls":3},"פריטים",null,{"v":0,"d":"₪ 0.00"},{"v":0,"d":"₪ 0.00"}]
[null," ",{"$nulls":3},{"$f":"SUBTOTAL(109,מכירת_פריטים[סה\"כ משוערות])","v":{"v":0,"d":"₪ 0.00"}},{"$f":"SUBTOTAL(109,מכירת_פריטים[סה\"כ בפועל])","v":{"v":0,"d":"₪ 0.00"}}]

{"sheet":"סיכום","index":3,"n_rows":9,"n_cols":4,"rows_kept":9,"merged":[[1,1,1,3],[2,2,2,3],[8,1,8,4],[9,1,9,3]]}
["סיכום רווח והפסד ותרשים שמציג את סה\"כ ההכנסות וסה\"כ ההוצאות מתעדכנים באופן אוטומטי בגליון עבודה זה. הוראות שימוש בגליון עבודה זה מופיעות בתאים שבעמודה זו. הקש על החץ למטה כדי להתחיל."]
["שם האירוע מתעדכן באופן אוטומטי בתא משמאל.",{"$f":"הוצאות!B2","v":"תקציב אירוע עבור \nשם האירוע"}]
["התווית 'סיכום רווח והפסד' מופיעה בתא C3. ההוראה הבאה מופיעה בתא A5.",null,"סיכום רווח והפסד"]
[]
["הטבלה 'סה\"כ' שמתחילה בתא משמאל מתעדכנת באופן אוטומטי. ההוראה הבאה מופיעה בתא A9.","סה\"כ","משוערת","בפועל"]
[null,"סה\"כ ההכנסות",{"$f":"הכנסות!F5","v":{"v":1936,"d":"₪ 1,936.00"}},{"$f":"הכנסות!G5","v":{"v":1831,"d":"₪ 1,831.00"}}]
[null,"סה\"כ ההוצאות",{"$f":"הוצאות!G5","v":{"v":1145,"d":"₪ 1,145.00"}},{"$f":"הוצאות!H5","v":{"v":395,"d":"₪ 395.00"}}]
[null,"סה\"כ רווח (או הפסד)",{"$f":"C6-C7","v":{"v":791,"d":"₪ 791.00"}},{"$f":"D6-D7","v":{"v":1436,"d":"₪ 1,436.00"}}]
["תרשים טורים מקובץ באשכולות שמציג השוואה בין סה\"כ ההכנסות המשוערות/בפועל לבין סה\"כ ההוצאות המשוערות/בפועל מופיע בתא משמאל.","תרשים טורים מקובץ באשכולות שמציג השוואה בין סה\"כ ההכנסות המשוערות/בפועל לבין סה\"כ ההוצאות המשוערות/בפועל מופיע בתא זה."]